bitfinex/quotes_SOLUSD_20241010
["timestamp","ask_amount","ask_price","bid_price","bid_amount"]
[1728548488638,7.1449,139.96,139.92,7.1468]
[1728548492440,7.1445,139.97,139.93,7.1462]
[1728548492653,39.8709,140.02,139.93,7.1462]
[1728548492861,7.1439,139.98,139.94,7.1458]
[1728548493071,7.1439,139.98,139.95,1.42885177]
[1728548494445,7.1439,139.98,139.94,7.1458]
[1728548496061,7.1434,139.99,139.95,1.42885239]
[1728548496272,7.1434,139.99,139.95,8.57415239]
[1728548496568,7.1429,140.0,139.95,8.57415239]
[1728548498763,7.1429,140.0,139.96,23.776884]
[1728548498943,7.1429,140.0,139.97,1.42856295]
[1728548499275,0.12549,140.03,139.97,1.42856295]
[1728548499276,7.1424,140.01,139.97,1.42856295]
[1728548501667,7.1424,140.01,139.96,30.921484]
[1728548503162,7.1424,140.01,139.97,8.57271087]
[1728548503361,7.142,140.02,139.98,7.1437]
[1728548504365,20.0,140.04,139.96,41.638284]
[1728548504576,7.1424,140.01,139.97,7.1443]
[1728548506659,7.1424,140.01,139.98,1.42850554]
[1728548506860,7.1424,140.01,139.97,7.1443]
[1728548507384,20.0,140.04,139.98,1.42849635]
[1728548507682,7.1415,140.03,139.98,19.28729635]
[1728548507858,7.1415,140.03,139.98,17.8588]
[1728548508059,7.1415,140.03,139.99,23.776884]
[1728548508260,7.1415,140.03,139.99,30.920084]
[1728548508776,36.94432323,140.08,140.0,1.42825734]
[1728548508777,7.1409,140.04,140.0,1.42825734]
[1728548508979,7.1409,140.04,140.0,8.57095734]
[1728548509682,7.1403,140.05,140.01,30.919184]
[1728548511079,7.1404,140.05,140.01,30.919184]
[1728548511476,7.1407,140.05,140.0,41.2212]
[1728548513979,7.1407,140.05,140.01,23.776884]
[1728548514371,7.1407,140.05,140.01,30.919184]
[1728548517868,7.1398,140.06,140.02,8.56977654]
[1728548520509,7.1398,140.06,140.02,7.1417]
[1728548520869,0.12549,140.08,140.01,23.776884]
[1728548521086,7.1407,140.05,140.0,41.2212]
[1728548521591,7.1407,140.05,140.01,1.4281233]
[1728548521795,7.1407,140.05,140.01,7.1422]
[1728548522087,7.1407,140.05,140.02,1.42812284]
[1728548522883,33.8709,140.09,140.02,1.42812284]
[1728548523092,7.1398,140.06,140.02,8.56972284]
[1728548523291,16.0245,140.09,140.03,7.1411]
[1728548523469,7.1395,140.07,140.04,1.42799082]
[1728548524383,20.0,140.11,140.04,8.56829082]
[1728548524581,7.1386,140.09,140.04,8.56829082]
[1728548524890,7.1386,140.09,140.04,1.42799082]
[1728548525077,7.1386,140.09,140.05,7.1401]
[1728548525276,7.1378,140.1,140.05,7.1401]
[1728548526201,7.1388,140.08,140.04,40.4463]
[1728548526371,33.8793354,140.13,140.04,15.4545]
[1728548526577,7.1393,140.07,140.04,15.4545]
[1728548526784,33.8793354,140.13,140.04,15.4545]
[1728548527003,7.1388,140.08,140.04,15.4545]
[1728548527482,7.1388,140.08,140.04,22.5953]
[1728548528985,7.1383,140.09,140.04,22.5953]
[1728548532897,7.1383,140.09,140.05,23.776884]
[1728548533104,7.1383,140.09,140.05,30.917084]
[1728548533505,7.1383,140.09,140.05,7.1402]
[1728548536504,20.0,140.12,140.06,23.776884]
[1728548536691,7.1384,140.09,140.05,7.1402]
[1728548538703,7.1384,140.09,140.04,22.5952]
[1728548540516,20.25098,140.1,140.01,15.7832]
[1728548540681,20.25098,140.1,140.02,7.1417]
[1728548540877,7.1393,140.07,140.02,7.1417]
[1728548541489,17.8437,140.11,140.03,7.1408]
[1728548541490,7.1388,140.08,140.03,7.1408]
[1728548541687,7.1388,140.08,140.04,23.776884]
[1728548542280,7.1383,140.09,140.04,7.1406]
[1728548542886,7.1383,140.09,140.05,1.42776725]
[1728548543210,7.1383,140.09,140.04,7.1406]
[1728548544685,20.0,140.1,140.04,7.1406]
[1728548544883,7.1388,140.08,140.04,7.1406]
[1728548545401,7.1403,140.05,140.01,22.9251]
[1728548545587,7.1403,140.05,140.01,15.7832]
[1728548546694,7.1403,140.05,140.01,22.9253]
[1728548548714,7.1399,140.06,140.01,22.9253]
[1728548549419,17.97159,140.09,140.02,25.20496781]
[1728548549611,0.12549,140.09,140.02,25.20496781]
[1728548550003,7.1389,140.08,140.03,7.1409]
[1728548550206,7.1389,140.08,140.04,1.42792994]
[1728548550817,7.1389,140.08,140.03,7.1409]
[1728548550998,20.0,140.1,140.04,1.42795504]
[1728548551200,7.1393,140.07,140.04,1.42795504]
[1728548551524,7.1393,140.07,140.03,7.1409]
[1728548553893,20.0,140.1,140.03,7.1409]
[1728548554093,7.1388,140.08,140.04,7.1407]
[1728548558113,7.1383,140.09,140.05,1.42782409]
[1728548560325,7.1383,140.09,140.04,7.1406]
[1728548561232,20.0,140.11,140.05,1.42782554]
[1728548561424,7.1388,140.08,140.05,1.42782554]
[1728548561830,7.1388,140.08,140.04,7.1406]
[1728548562036,7.1388,140.08,140.05,1.42782573]
[1728548562534,7.1388,140.08,140.03,24.9937]
[1728548563038,7.1388,140.08,140.04,1.42785932]
[1728548563411,7.1388,140.08,140.03,24.9937]
[1728548563611,7.1388,140.08,140.03,26.42155731]
[1728548564332,7.1388,140.08,140.03,24.9937]
[1728548565565,7.1388,140.08,140.04,1.42785762]
[1728548566443,7.1388,140.08,140.03,24.9937]
[1728548566635,7.1388,140.08,140.04,1.4278581]
[1728548567534,7.1388,140.08,140.03,24.9937]
[1728548568138,7.1388,140.08,140.04,7.1407]
[1728548568338,7.1388,140.08,139.94,125.84602326]
[1728548568339,7.1432,140.0,139.97,15.4626]
[1728548568514,7.1424,140.01,139.97,15.4626]
[1728548568912,0.12549,140.05,139.97,15.4626]
[1728548569128,7.1429,140.0,139.97,15.4626]
[1728548569341,7.1429,140.0,139.97,16.89127133]
[1728548569541,7.1429,140.0,139.97,15.4626]
[1728548570245,7.1429,140.0,139.97,16.89125735]
[1728548571128,7.1429,140.0,139.97,15.4626]
[1728548572241,7.1429,140.0,139.94,17.8646]
[1728548572422,23.902374,140.05,139.95,23.776884]
[1728548572423,17.8537,140.03,139.95,23.776884]
[1728548572620,7.1434,139.99,139.95,23.776884]
[1728548573066,7.1434,139.99,139.95,30.922184]
[1728548573220,7.1429,140.0,139.95,30.922184]
[1728548573425,7.1429,140.0,139.96,8.57348107]
[1728548573635,7.1429,140.0,139.96,7.1448]
[1728548574333,7.1413,140.03,139.98,7.1437]
[1728548574636,50.66249973,140.07,139.97,23.776884]
[1728548574637,7.1419,140.02,139.97,30.921084]
[1728548588858,17.8512,140.05,139.96,25.0061]
[1728548589036,7.1432,140.0,139.96,17.8614]
[1728548589236,7.1432,140.0,139.96,25.0062]
[1728548592858,7.1424,140.01,139.97,1.42870895]
[1728548595369,7.1419,140.02,139.97,7.144]
[1728548595546,7.1419,140.02,139.98,1.42856544]
[1728548595749,7.1413,140.03,139.98,8.57236544]
[1728548596062,27.1409,140.04,139.98,19.28766544]
[1728548596272,7.1408,140.04,140.0,7.1426]
[1728548596460,7.1408,140.04,140.0,8.57095526]
[1728548596848,7.1408,140.04,140.0,1.42835526]
[1728548597048,7.1408,140.04,139.99,1.42842333]
[1728548597275,7.1414,140.03,139.98,25.0025]
[1728548599459,7.1422,140.02,139.98,17.8591]
[1728548600168,7.1422,140.02,139.98,19.28761406]
[1728548600370,7.1422,140.02,139.98,17.8591]
[1728548602766,7.1424,140.01,139.98,17.8591]
[1728548603144,7.1424,140.01,139.97,16.2533]
[1728548605472,7.143,140.0,139.96,7.1447]
[1728548613667,7.143,140.0,139.95,25.0079]
[1728548616877,7.143,140.0,139.95,17.8627]
[1728548617175,7.143,140.0,139.96,7.1448]
[1728548625889,7.143,140.0,139.96,8.57357451]
[1728548627091,16.2246,140.03,139.96,1.42877451]
[1728548627273,7.1423,140.01,139.97,7.1443]
[1728548629270,7.1423,140.01,139.96,7.1447]
[1728548629990,16.2246,140.03,139.95,25.0079]
[1728548629991,7.1434,139.99,139.95,25.0079]
[1728548630188,20.25098,140.02,139.95,25.0079]
[1728548630189,7.1429,140.0,139.96,7.1448]
[1728548630378,7.1429,140.0,139.96,8.57357655]
[1728548631579,20.12549,140.02,139.96,1.42877655]
[1728548631782,7.1424,140.01,139.97,7.1443]
[1728548632797,7.1424,140.01,139.96,8.57347655]
[1728548633475,20.0,140.02,139.96,1.42877655]
[1728548633791,20.0,140.02,139.98,7.1438]
[1728548634497,7.1418,140.02,139.98,7.1438]
[1728548636197,6.0829,140.04,139.98,16.1351]
[1728548636389,36.93668465,140.09,140.0,7.1427]
[1728548636390,3.74731169,140.08,140.0,7.1427]
[1728548636691,3.74731169,140.08,140.04,7.1408]
[1728548636692,7.1388,140.08,140.04,7.1408]
[1728548637298,7.1383,140.09,140.04,7.1408]
[1728548637503,7.1383,140.09,140.05,1.42790701]
[1728548637984,7.1383,140.09,140.04,7.1408]
[1728548643576,7.1389,140.08,140.03,23.2763]
[1728548643887,7.1398,140.06,140.03,16.1351]
[1728548645696,23.776884,140.09,140.0,23.6089]
[1728548645887,7.1408,140.04,140.0,23.6089]
[1728548646679,7.1408,140.04,140.0,25.03726628]
[1728548646892,7.1408,140.04,140.0,23.6089]
[1728548649611,7.1408,140.04,140.0,25.03723735]
[1728548650618,7.1408,140.04,140.0,23.6089]
[1728548651120,7.1408,140.04,140.0,25.03723714]
[1728548651603,7.1408,140.04,140.0,23.6089]
[1728548655216,7.1408,140.04,140.0,25.03723485]
[1728548656518,22.4913,140.11,140.04,7.1406]
[1728548656700,7.1388,140.08,140.03,24.994]
[1728548657010,7.1388,140.08,140.04,1.42795951]
[1728548657213,7.1388,140.08,140.04,8.56865951]
[1728548657718,7.1388,140.08,140.04,7.1407]
[1728548660528,7.1388,140.08,140.03,24.9938]
[1728548662315,0.25098,140.1,140.03,17.8527]
[1728548662518,7.1396,140.07,140.03,17.8527]
[1728548662709,7.1396,140.07,140.03,26.42186211]
[1728548664696,7.1387,140.08,140.04,7.1407]
[1728548665405,7.1387,140.08,140.05,1.42793438]
[1728548665626,20.0,140.1,140.05,1.42793438]
[1728548665823,7.1382,140.09,140.05,8.56813438]
[1728548666624,7.1382,140.09,140.05,7.1402]
[1728548669027,7.1382,140.09,140.04,1.42785533]
[1728548669213,7.1382,140.09,140.04,7.1407]
[1728548669916,7.1382,140.09,140.05,1.42785717]
[1728548671813,7.1382,140.09,140.04,7.1407]
[1728548672213,7.1382,140.09,140.05,1.42785734]
[1728548673713,7.1378,140.1,140.06,7.1397]
[1728548673914,7.1378,140.1,140.05,26.41795734]
[1728548674109,7.1378,140.1,140.06,1.42779227]
[1728548679512,7.1378,140.1,140.06,8.56729227]
[1728548681648,7.1378,140.1,140.06,7.1395]
[1728548682249,7.1378,140.1,140.07,1.42765235]
[1728548682434,7.1378,140.1,140.06,7.1395]
[1728548684244,7.1378,140.1,140.06,8.56716285]
[1728548684540,7.1378,140.1,140.06,7.1395]
[1728548686328,7.1378,140.1,140.07,1.42765322]
[1728548686523,7.1378,140.1,140.06,7.1395]
[1728548687325,0.25098,140.12,140.05,24.99]
[1728548687646,7.1384,140.09,140.05,24.99]
[1728548688437,7.1384,140.09,140.06,1.42775709]
[1728548688851,7.1384,140.09,140.05,24.99]
[1728548690431,7.1384,140.09,140.06,1.42774216]
[1728548695957,7.1384,140.09,140.06,23.776884]
[1728548699340,0.25098,140.12,140.06,23.776884]
[1728548699656,7.1378,140.1,140.06,32.34411689]
[1728548700536,7.1373,140.11,140.08,23.776884]
[1728548703060,7.1382,140.1,140.05,24.9901]
[1728548703259,7.1382,140.1,140.06,23.776884]
[1728548705459,7.1382,140.1,140.06,30.916584]
[1728548710437,7.1372,140.11,140.07,8.56675705]
[1728548710766,7.1368,140.12,140.08,23.776884]
[1728548710942,7.1368,140.12,140.08,30.915584]
[1728548711972,7.9773354,140.13,140.09,1.42743689]
[1728548712335,7.9773354,140.13,140.1,23.776884]
[1728548715960,7.9773354,140.13,140.1,25.204254]
[1728548718168,7.9773354,140.13,140.1,23.776884]
[1728548718366,7.9773354,140.13,140.09,23.776884]
[1728548720836,7.1373,140.11,140.09,23.776884]
[1728548721557,7.1368,140.12,140.09,23.776884]
[1728548726174,7.1368,140.12,140.09,25.20428249]
[1728548727068,0.8411354,140.13,140.09,23.776884]
[1728548727269,7.9774354,140.13,140.09,23.776884]
[1728548727765,7.9774354,140.13,140.1,1.42729163]
[1728548728568,0.8411354,140.13,140.11,23.776884]
[1728548729864,0.3411354,140.13,140.11,23.776884]
[1728548730686,0.3411354,140.13,140.12,25.20404696]
[1728548731173,0.3411354,140.13,140.12,32.34074696]
[1728548731965,0.3411354,140.13,140.12,30.913584]
[1728548744162,0.3411354,140.13,140.12,23.776884]
[1728548749861,0.3411354,140.13,140.11,23.776884]
[1728548750065,0.3411354,140.13,140.09,23.776884]
[1728548750980,0.3411354,140.13,140.12,23.776884]
[1728548754380,0.3411354,140.13,140.12,30.913584]
[1728548762865,0.3411354,140.13,140.11,23.776884]
[1728548763482,0.3411354,140.13,140.11,30.913984]
[1728548773281,0.3411354,140.13,140.12,23.776884]
[1728548776697,0.3411354,140.13,140.09,7.1378]
[1728548776883,0.3411354,140.13,140.07,17.8474]
[1728548776884,7.1372,140.11,140.07,17.8474]
[1728548777203,0.3411354,140.13,140.07,17.8474]
[1728548777204,7.1367,140.12,140.07,24.9862]
[1728548777503,0.3411354,140.13,140.07,24.9862]
[1728548777799,7.1373,140.11,140.07,24.9862]
[1728548778373,7.1373,140.11,140.07,17.8474]
[1728548778593,7.1378,140.1,140.07,17.8474]
[1728548781378,7.1378,140.1,140.05,30.916984]
[1728548782700,7.1378,140.1,140.07,23.776884]
[1728548782996,7.1378,140.1,140.05,30.917084]
[1728548783228,20.25098,140.12,140.01,35.7112]
[1728548783400,7.1389,140.08,140.03,7.1412]
[1728548784906,7.1389,140.08,140.04,23.776884]
[1728548785991,20.25098,140.12,140.04,23.776884]
[1728548786189,7.1393,140.07,140.03,23.776884]
[1728548787411,20.25098,140.12,140.03,23.776884]
[1728548787610,15.4993,140.09,140.02,23.776884]
[1728548787909,20.0,140.12,140.06,17.8487]
[1728548788381,20.0,140.1,140.06,24.9883]
[1728548788577,27.1378,140.1,140.06,24.9883]
[1728548788784,20.0,140.11,140.07,30.916084]
[1728548789080,29.4207354,140.13,140.08,7.1383]
[1728548789401,7.4774354,140.13,140.09,1.42763288]
[1728548789577,7.4774354,140.13,140.09,8.56583288]
[1728548789578,0.3411354,140.13,140.09,8.56583288]
[1728548789781,0.3411354,140.13,140.1,7.1377]
[1728548790504,0.3411354,140.13,140.09,8.56573288]
[1728548790684,0.3411354,140.13,140.1,23.776884]
[1728548791904,7.4773354,140.13,140.08,24.9843]
[1728548792087,7.4773354,140.13,140.09,23.776884]
[1728548792588,7.4773354,140.13,140.09,25.20432618]
[1728548793300,7.4773354,140.13,140.09,32.34252618]
[1728548795483,7.4773354,140.13,140.09,30.915084]
[1728548795888,0.3411354,140.13,140.09,30.915084]
[1728548798304,0.3411354,140.13,140.1,1.42732751]
[1728548798504,0.3411354,140.13,140.09,30.915084]
[1728548799437,0.3411354,140.13,140.1,1.42732497]
[1728548799711,0.3411354,140.13,140.11,23.776884]
[1728548799921,0.3411354,140.13,140.1,7.1375]
[1728548800292,0.3411354,140.13,140.09,30.914984]
[1728548802413,0.3411354,140.13,140.1,1.42730625]
[1728548802615,0.3411354,140.13,140.09,30.914984]
[1728548805922,0.3411354,140.13,140.1,1.427306]
[1728548806805,0.3411354,140.13,140.09,30.914984]
[1728548807026,0.3411354,140.13,140.1,1.42730347]
[1728548807400,0.3411354,140.13,140.09,30.914984]
[1728548808914,7.1367,140.12,140.09,23.776884]
[1728548810694,7.1367,140.12,140.09,25.20433489]
[1728548810891,7.4774354,140.13,140.09,25.20433489]
[1728548811420,7.4774354,140.13,140.09,32.34243489]
[1728548811716,7.4774354,140.13,140.09,30.914984]
[1728548812503,7.4774354,140.13,140.1,1.4273541]
[1728548812708,7.4774354,140.13,140.09,30.914984]
[1728548814014,7.4774354,140.13,140.1,1.42735328]
[1728548815219,7.4774354,140.13,140.09,30.914984]
[1728548815416,7.4774354,140.13,140.1,1.42735269]
[1728548816120,7.4774354,140.13,140.09,30.914984]
[1728548816726,0.3411354,140.13,140.1,8.56495246]
[1728548817017,0.3411354,140.13,140.1,8.56493202]
[1728548818718,0.3411354,140.13,140.1,7.1376]
[1728548819025,0.3411354,140.13,140.1,8.56491767]
[1728548819196,0.3411354,140.13,140.11,25.20410794]
[1728548819527,0.3411354,140.13,140.11,32.34120794]
[1728548820320,0.3411354,140.13,140.12,7.1367]
[1728548820614,0.3411354,140.13,140.12,30.913584]
[1728548820801,0.3411354,140.13,140.11,30.913984]
[1728548821197,0.3411354,140.13,140.1,17.8438]
[1728548824732,0.3411354,140.13,140.1,19.27111099]
[1728548825025,0.3411354,140.13,140.11,23.776884]
[1728548826432,7.4773354,140.13,140.1,23.776884]
[1728548831234,7.1368,140.12,140.09,23.776884]
[1728548832627,7.4774354,140.13,140.1,1.42737275]
[1728548834622,7.4774354,140.13,140.09,30.914884]
[1728548834835,7.4774354,140.13,140.09,23.776884]
[1728548835038,7.4774354,140.13,140.08,30.915584]
[1728548837642,7.1368,140.12,140.08,23.776884]
[1728548838433,7.1368,140.12,140.08,30.915484]
[1728548839221,0.3411354,140.13,140.08,30.915484]
[1728548839534,7.4774354,140.13,140.09,1.42738623]
[1728548839916,7.4774354,140.13,140.08,30.915484]
[1728548840313,7.4774354,140.13,140.09,1.42738603]
[1728548841941,7.4774354,140.13,140.08,30.915484]
[1728548843274,7.4774354,140.13,140.08,23.776884]
[1728548843452,7.4774354,140.13,140.1,23.776884]
[1728548852756,7.4774354,140.13,140.09,23.776884]
[1728548855836,7.1367,140.12,140.08,23.776884]
[1728548856131,7.1373,140.11,140.08,23.776884]
[1728548860452,7.1368,140.12,140.09,1.42748317]
[1728548861357,0.3411354,140.13,140.1,23.776884]
[1728548861559,0.3411354,140.13,140.11,1.42730126]
[1728548861858,0.3411354,140.13,140.12,23.776884]
[1728548863065,0.3411354,140.13,140.11,7.1372]
[1728548863066,0.3411354,140.13,140.11,23.776884]
[1728548863451,0.3411354,140.13,140.12,25.20404161]
[1728548863752,0.3411354,140.13,140.12,23.776884]
[1728548863950,0.3411354,140.13,140.11,23.776884]
[1728548864547,0.3411354,140.13,140.11,25.20403206]
[1728548864950,0.3411354,140.13,140.11,32.34113206]
[1728548867543,0.3411354,140.13,140.11,25.20403206]
[1728548867740,0.3411354,140.13,140.12,30.913584]
[1728548874152,0.3411354,140.13,140.12,23.776884]
[1728548882269,0.3411354,140.13,140.12,25.20391116]
[1728548882585,0.3411354,140.13,140.12,23.776884]
[1728548883257,0.3411354,140.13,140.12,25.20391067]
[1728548884174,0.3411354,140.13,140.12,23.776884]
[1728548884369,0.3411354,140.13,140.12,25.20390747]
[1728548885080,0.3411354,140.13,140.12,25.20390867]
[1728548885778,0.3411354,140.13,140.12,23.776884]
[1728548886579,0.3411354,140.13,140.12,25.20390816]
[1728548888479,0.3411354,140.13,140.12,32.34060768]
[1728548888656,0.3411354,140.13,140.12,30.913584]
[1728548889583,0.3411354,140.13,140.12,32.34060738]
[1728548890379,0.3411354,140.13,140.12,32.46609738]
[1728548891469,0.3411354,140.13,140.12,66.1107919]
[1728548892158,0.3411354,140.13,140.12,66.2362819]
[1728548892358,0.3411354,140.13,140.12,51.164564]
[1728548895557,0.3411354,140.13,140.12,52.59128052]
[1728548896079,0.3411354,140.13,140.12,66.23597504]
[1728548897758,0.3411354,140.13,140.12,91.25386113]
[1728548899488,0.3411354,140.13,140.12,89.82714461]
[1728548900488,0.3411354,140.13,140.12,80.20135852]
[1728548901691,0.3411354,140.13,140.12,66.556664]
[1728548902370,0.3411354,140.13,140.12,80.20135852]
[1728548903475,0.3411354,140.13,140.12,91.25376114]
[1728548905393,0.3411354,140.13,140.12,89.82714461]
[1728548905972,0.3411354,140.13,140.12,80.20135852]
[1728548906896,0.3411354,140.13,140.12,81.62797434]
[1728548908298,0.3411354,140.13,140.12,80.20135852]
[1728548908869,0.3411354,140.13,140.12,110.20135852]
[1728548910688,0.3411354,140.13,140.12,111.62787305]
[1728548911301,0.3411354,140.13,140.12,121.25365914]
[1728548911501,3.07481425,140.18,140.12,114.11695914]
[1728548911793,3.07481425,140.18,140.17,7.1341]
[1728548913191,3.07481425,140.18,140.17,8.56048144]
[1728548913506,3.07481425,140.18,140.17,7.1341]
[1728548913802,3.07481425,140.18,140.17,23.776884]
[1728548915189,3.07481425,140.18,140.17,25.20349975]
[1728548915706,3.07481425,140.18,140.17,23.776884]
[1728548916002,3.07481425,140.18,140.17,30.910984]
[1728548916297,3.07481425,140.18,140.17,23.776884]
[1728548917585,3.07481425,140.18,140.17,25.20346805]
[1728548918415,3.07481425,140.18,140.17,23.776884]
[1728548919602,3.07481425,140.18,140.17,30.910984]
[1728548920285,3.07481425,140.18,140.17,32.33745498]
[1728548920791,3.07481425,140.18,140.17,30.910984]
[1728548921281,3.07481425,140.18,140.17,32.33739585]
[1728548922594,3.07481425,140.18,140.17,30.910984]
[1728548923200,3.07481425,140.18,140.17,32.33740255]
[1728548925610,3.07481425,140.18,140.17,30.910984]
[1728548927101,3.07481425,140.18,140.17,23.776884]
[1728548928383,3.07481425,140.18,140.17,32.3375269]
[1728548928691,3.07481425,140.18,140.17,30.910984]
[1728548932207,3.07481425,140.18,140.17,23.776884]
[1728548937213,3.07481425,140.18,140.17,30.910984]
[1728548940615,3.07481425,140.18,140.17,23.776884]
[1728548941310,3.07481425,140.18,140.17,25.20349731]
[1728548941498,3.07481425,140.18,140.17,25.20349981]
[1728548942020,3.07481425,140.18,140.17,23.776884]
[1728548943609,3.07481425,140.18,140.17,25.20349819]
[1728548943803,3.07481425,140.18,140.17,23.776884]
[1728548949303,3.07481425,140.18,140.16,23.776884]
[1728548952310,3.07481425,140.18,140.17,23.776884]
[1728548958106,3.07481425,140.18,140.17,30.910984]
[1728548966839,3.07481425,140.18,140.17,32.33752044]
[1728548971439,3.07481425,140.18,140.17,30.910984]
[1728548973922,3.07481425,140.18,140.17,23.776884]
[1728548980946,3.07481425,140.18,140.17,30.910984]
[1728548983432,3.07481425,140.18,140.17,23.776884]
[1728548989337,3.07481425,140.18,140.17,30.910984]
[1728548990354,3.07481425,140.18,140.17,32.33747615]
[1728548992048,3.07481425,140.18,140.17,30.910984]
[1728549003260,3.07481425,140.18,140.17,23.776884]
[1728549003472,3.07481425,140.18,140.13,20.0]
[1728549003761,10.20851425,140.18,140.13,24.9758]
[1728549004147,10.20851425,140.18,140.13,17.8397]
[1728549004346,10.20851425,140.18,140.14,7.1356]
[1728549004550,3.07481425,140.18,140.14,7.1356]
[1728549005763,3.07481425,140.18,140.15,23.776884]
[1728549006861,10.20851425,140.18,140.15,23.776884]
[1728549007171,10.20851425,140.18,140.14,23.776884]
[1728549009254,3.07481425,140.18,140.14,23.776884]
[1728549009758,10.20851425,140.18,140.14,23.776884]
[1728549010558,10.20851425,140.18,140.14,30.912384]
[1728549011548,10.20851425,140.18,140.14,23.776884]
[1728549016953,7.1347,140.16,140.14,23.776884]
[1728549017546,7.1347,140.16,140.13,23.776884]
[1728549018392,7.1357,140.14,140.1,17.8437]
[1728549018580,7.1364,140.13,140.07,17.8475]
[1728549018750,7.1364,140.13,140.08,7.1387]
[1728549019558,22.7605,140.16,140.09,1.42734227]
[1728549019766,7.1358,140.14,140.09,7.1381]
[1728549019997,7.1358,140.14,140.1,23.776884]
[1728549020160,7.1358,140.14,140.1,32.34181525]
[1728549020484,20.0,140.15,140.1,32.34181525]
[1728549020671,27.1353,140.15,140.1,32.34181525]
[1728549021160,7.1353,140.15,140.1,30.914484]
[1728549021361,7.1358,140.14,140.1,30.914484]
[1728549021761,7.1358,140.14,140.11,1.42727125]
[1728549022189,7.1358,140.14,140.1,30.914484]
[1728549024489,7.1366,140.13,140.1,23.776884]
[1728549024662,22.7605,140.16,140.07,24.9866]
[1728549024663,7.1368,140.12,140.07,24.9866]
[1728549024990,7.1368,140.12,140.08,7.1387]
[1728549025872,7.1368,140.12,140.09,23.776884]
[1728549027386,7.1368,140.12,140.09,25.2043252]
[1728549028158,7.1377,140.1,140.05,22.3307]
[1728549028658,7.1373,140.11,140.06,7.1395]
[1728549028982,7.1373,140.11,140.05,15.1905]
[1728549029283,7.1373,140.11,140.07,7.1391]
[1728549029675,7.1373,140.11,140.08,23.776884]
[1728549029992,20.25098,140.15,140.09,1.4275706]
[1728549029993,7.1363,140.13,140.09,1.4275706]
[1728549034090,7.1367,140.12,140.09,1.4275706]
[1728549034290,7.1367,140.12,140.08,30.915584]
[1728549035989,7.1373,140.11,140.07,23.776884]
[1728549037086,7.1373,140.11,140.08,1.42754546]
[1728549038376,7.1373,140.11,140.07,30.916084]
[1728549038885,7.1373,140.11,140.08,1.42754536]
[1728549039905,7.1363,140.13,140.09,30.914984]
[1728549040398,7.1363,140.13,140.1,1.4273926]
[1728549040608,7.1363,140.13,140.09,23.776884]
[1728549041181,7.1371,140.12,140.09,23.776884]
[1728549041381,7.1371,140.12,140.08,23.776884]
[1728549041609,7.1374,140.11,140.08,23.776884]
[1728549044710,7.1367,140.12,140.08,32.34312909]
[1728549044892,7.1367,140.12,140.08,30.915584]
[1728549045101,7.1367,140.12,140.09,1.42747345]
[1728549045401,7.1367,140.12,140.07,30.915784]
[1728549050204,7.1367,140.12,140.09,23.776884]
[1728549050997,7.1367,140.12,140.08,23.776884]
[1728549051298,0.12549,140.14,140.07,23.776884]
[1728549051513,7.1379,140.1,140.07,23.776884]
[1728549051902,37.96419,140.15,140.05,15.1905]
[1728549051903,7.1386,140.09,140.05,15.1905]
[1728549052819,7.1387,140.08,140.03,24.9935]
[1728549053005,7.1387,140.08,140.04,23.776884]
[1728549060939,7.1387,140.08,140.04,25.20486565]
[1728549063817,20.25098,140.12,140.04,25.20486565]
[1728549064008,7.1383,140.09,140.05,7.1402]
[1728549064329,7.1383,140.09,140.06,25.20468567]
[1728549064630,7.1378,140.1,140.06,25.20468567]
[1728549064826,20.0,140.09,140.06,25.20468567]
[1728549065417,0.25098,140.12,140.06,25.20468567]
[1728549065418,20.0,140.12,140.06,23.776884]
[1728549065603,7.1381,140.1,140.06,23.776884]
[1728549066318,7.1381,140.1,140.06,25.20458037]
[1728549066823,7.1381,140.1,140.06,23.776884]
[1728549067027,7.1381,140.1,140.06,25.20457631]
[1728549067227,20.0,140.12,140.06,25.20457631]
[1728549067408,7.1368,140.12,140.08,30.915584]